fUSD/lending_fUSD_20241125
["ID","MTS","AMOUNT","RATE_DAILY","PERIOD"]
[343278218,1732537877210,-170.06533162,0.00045,5]
[343278219,1732537877222,-500.0,0.00045106,2]
[343278220,1732537877231,-2000.0,0.00045169,120]
[343278221,1732537877241,-500.0,0.00045169,120]
[343278222,1732537877250,-283.454971,0.00045169,120]
[343278223,1732537877260,-736.98,0.00045205,120]
[343278224,1732537877271,-200.0,0.00045205,2]
[343278225,1732537877281,-168.85060596,0.00045205,60]
[343278226,1732537877290,-151.0,0.0004538,2]
[343278227,1732537877299,-159.01,0.00045432,2]
[343278228,1732537877309,-4776.60757764,0.00045612,15]
[343278229,1732537877318,-736.98,0.00045616,120]
[343278230,1732537877328,-204.0,0.0004579,30]
[343278231,1732537877338,-204.0,0.0004579,30]
[343278232,1732537877349,-656.21588086,0.00045794,15]
[343278233,1732537877359,-168.85060596,0.00045808,60]
[343278234,1732537877369,-413.0,0.00045846,7]
[343278235,1732537877380,-500.0,0.00045898,120]
[343278236,1732537877391,-500.0,0.00045898,120]
[343278237,1732537877401,-1141.9,0.0004592,2]
[343278238,1732537877411,-1600.0,0.0004592,2]
[343278239,1732537877424,-450.0,0.00046,120]
[343278240,1732537877435,-151.0,0.00046,120]
[343278241,1732537877447,-736.98,0.00046027,120]
[343278242,1732537877459,-1000.0,0.00046062,2]
[343278243,1732537877468,-500.0,0.000463,17]
[343278244,1732537877477,-500.0,0.000463,17]
[343278245,1732537877487,-500.0,0.000463,17]
[343278246,1732537877497,-500.0,0.000463,17]
[343278247,1732537877506,-500.0,0.000463,17]
[343278248,1732537877516,-500.0,0.000463,17]
[343278249,1732537877526,-500.0,0.000463,17]
[343278250,1732537877536,-500.0,0.000463,17]
[343278251,1732537877546,-500.0,0.000463,17]
[343278252,1732537877556,-500.0,0.000463,17]
[343278253,1732537877566,-500.0,0.000463,17]
[343278254,1732537877575,-500.0,0.000463,17]
[343278255,1732537877585,-500.0,0.000463,17]
[343278256,1732537877595,-500.0,0.000463,17]
[343278257,1732537877605,-603.33607759,0.000463,17]
[343278258,1732537877614,-1001.93,0.00046353,2]
[343278259,1732537877624,-150.0,0.00046388,2]
[343278260,1732537877633,-530.88,0.00046388,2]
[343278261,1732537877646,-168.879303,0.00046415,30]
[343278262,1732537877656,-314.276,0.00046422,2]
[343278263,1732537877665,-1267.22,0.00046422,2]
[343278264,1732537877675,-1172.156,0.00046422,2]
[343278265,1732537877683,-3753.0,0.00046422,2]
[343278266,1732537877693,-3519.0,0.00046422,2]
[343278267,1732537877703,-980.0,0.00046422,2]
[343278268,1732537877713,-1437.999,0.00046422,2]
[343278269,1732537877723,-565.0,0.00046422,2]
[343278270,1732537877733,-1258.0,0.00046422,2]
[343278271,1732537877742,-736.98,0.00046438,120]
[343278272,1732537877752,-211.9949351,0.00046446,120]
[343278273,1732537877762,-1280.0,0.0004648,120]
[343278274,1732537877771,-500.0,0.00046575,15]
[343278275,1732537877780,-500.0,0.00046575,15]
[343278276,1732537877790,-500.0,0.00046575,15]
[343278277,1732537877799,-4000.0,0.00046575,2]
[343278278,1732537877809,-150.0,0.00046603,30]
[343278279,1732537877818,-150.0,0.00046603,30]
[343278280,1732537877828,-365.0,0.000467,30]
[343278281,1732537877838,-204.0,0.0004675,30]
[343278282,1732537877847,-204.0,0.0004675,30]
[343278283,1732537877856,-410.0,0.00046771,60]
[343278284,1732537877865,-736.98,0.00046849,120]
[343278285,1732537877874,-19061.48080977,0.0004688,120]
[343278286,1732537877884,-24346.82432277,0.0004692,2]
[343278287,1732537877898,-3600.0,0.00047,48]
[343278288,1732537877907,-11717.35,0.00047007,15]
[343278289,1732537877918,-5000.0,0.00047043,15]
[343278290,1732537877927,-3783.85,0.00047052,15]
[343278291,1732537877937,-656.21588086,0.0004706,15]
[343278292,1732537877946,-5000.0,0.0004708,15]
[343278293,1732537877956,-3707.33,0.00047098,15]
[343278294,1732537877965,-5000.0,0.0004713,15]
[343278295,1732537877975,-5000.0,0.00047139,15]
[343278296,1732537877985,-5000.0,0.00047139,15]
[343278297,1732537877994,-5000.0,0.00047158,15]
[343278298,1732537878004,-5000.0,0.00047161,15]
[343278299,1732537878014,-4520.33,0.00047171,15]
[343278300,1732537878024,-5000.0,0.00047189,15]
[343278301,1732537878035,-944.47,0.00047205,15]
[343278302,1732537878045,-5000.0,0.00047213,15]
[343278303,1732537878055,-25000.0,0.00047225,15]
[343278304,1732537878065,-736.98,0.0004726,120]
[343278305,1732537878076,-1137.35,0.00047278,15]
[343278306,1732537878085,-5000.0,0.00047336,15]
[343278307,1732537878095,-1164.66,0.00047336,15]
[343278308,1732537878103,-5000.0,0.00047338,15]
[343278309,1732537878113,-5000.0,0.00047373,15]
[343278310,1732537878122,-5000.0,0.00047377,15]
[343278311,1732537878131,-5000.0,0.00047392,15]
[343278312,1732537878145,-5000.0,0.0004741,15]
[343278313,1732537878155,-3336.97,0.00047424,15]
[343278314,1732537878165,-5000.0,0.00047433,15]
[343278315,1732537878175,-162.36060152,0.00047439,23]
[343278316,1732537878184,-5000.0,0.00047471,15]
[343278317,1732537878193,-5000.0,0.00047477,15]
[343278318,1732537878203,-873.22,0.00047539,120]
[343278319,1732537878213,-5000.0,0.00047557,15]
[343278320,1732537878222,-15107.27319979,0.00047569,15]
[343278321,1732537878345,-9892.72680021,0.00047569,15]
[343278322,1732537878356,-150.0,0.00047579,15]
[343278323,1732537878367,-25000.0,0.00047584,15]
[343278324,1732537878378,-1142.43,0.00047598,15]
[343278325,1732537878391,-1500.0,0.00047606,14]
[343278326,1732537878402,-25000.0,0.00047617,15]
[343278327,1732537878414,-5000.0,0.00047619,15]
[343278328,1732537878427,-1261.66,0.00047621,15]
[343278329,1732537878437,-4011.16,0.00047622,15]
[343278330,1732537878447,-736.98,0.00047671,120]
[343278331,1732537878458,-5000.0,0.00047674,15]
[343278332,1732537878470,-25000.0,0.00047702,15]
[343278333,1732537878480,-5000.0,0.0004771,15]
[343278334,1732537878489,-204.0,0.0004771,30]
[343278335,1732537878499,-204.0,0.0004771,30]
[343278336,1732537878511,-5000.0,0.00047712,15]
[343278337,1732537878521,-5000.0,0.00047721,15]
[343278338,1732537878532,-2249.39,0.00047733,15]
[343278339,1732537878542,-25000.0,0.00047741,15]
[343278340,1732537878552,-5000.0,0.00047751,15]
[343278341,1732537878562,-5000.0,0.00047771,15]
[343278342,1732537878571,-5000.0,0.00047798,15]
[343278343,1732537878582,-5000.0,0.00047806,15]
[343278344,1732537878595,-152.29,0.00047827,120]
[343278345,1732537878607,-310.54,0.00047832,15]
[343278346,1732537878620,-500.0,0.00047846,2]
[343278347,1732537878632,-5000.0,0.00047863,15]
[343278348,1732537878645,-368.7065,0.00047881,2]
[343278349,1732537878657,-2262.21,0.00047938,15]
[343278350,1732537878668,-5000.0,0.00047945,15]
[343278351,1732537878678,-150.71,0.00047945,2]
[343278352,1732537878690,-5000.0,0.00047987,15]
[343278353,1732537878701,-5000.0,0.00047993,15]
[343278354,1732537878712,-450.0,0.00048,120]
[343278355,1732537878724,-736.98,0.00048082,120]
[343278356,1732537878735,-153.02,0.000482,45]
[343278357,1732537878747,-153.02,0.000482,45]
[343278358,1732537878759,-153.02,0.000482,45]
[343278359,1732537878770,-153.02,0.000482,45]
[343278360,1732537878782,-153.02,0.000482,45]
[343278361,1732537878795,-153.02,0.000482,45]
[343278362,1732537878807,-153.02,0.000482,45]
[343278363,1732537878819,-153.02,0.000482,45]
[343278364,1732537878830,-656.21588086,0.00048326,15]
[343278365,1732537878841,-2000.0,0.00048357,120]
[343278366,1732537878852,-985.0,0.00048484,120]
[343278367,1732537878866,-736.98,0.00048493,120]
[343278368,1732537878876,-717.95787193,0.00048516,14]
[343278369,1732537878887,-202.78525,0.00048554,120]
[343278370,1732537878902,-1001.93,0.00048617,2]
[343278371,1732537878914,-572.3822908,0.0004864,4]
[343278372,1732537878926,-204.0,0.0004867,30]
[343278373,1732537878938,-204.0,0.0004867,30]
[343278374,1732537878949,-168.879303,0.00048735,30]
[343278375,1732537878961,-164.76950549,0.00048801,25]
[343278376,1732537878973,-738.13604751,0.00048857,14]
[343278377,1732537878985,-16609.56760085,0.00048861,14]
[343278378,1732537878996,-2464.21491062,0.00048865,14]
[343278379,1732537879008,-506.15478439,0.00048868,14]
[343278380,1732537879019,-1190.42773261,0.00048868,14]
[343278381,1732537879031,-2464.21491062,0.00048869,14]
[343278382,1732537879043,-506.15478439,0.00048876,14]
[343278383,1732537879060,-738.13604751,0.00048888,14]
[343278384,1732537879073,-1190.42773261,0.00048891,14]
[343278385,1732537879085,-16609.56760085,0.00048897,14]
[343278386,1732537879096,-736.98,0.00048904,120]
[343278387,1732537879108,-738.13604751,0.00048907,14]
[343278388,1732537879119,-859.64612158,0.00048908,14]
[343278389,1732537879131,-859.64612158,0.00048909,14]
[343278390,1732537879142,-1190.42773261,0.00048909,14]
[343278391,1732537879153,-200.0,0.00048911,14]
[343278392,1732537879165,-200.0,0.00048912,14]
[343278393,1732537879176,-16609.56760085,0.00048916,14]
[343278394,1732537879187,-200.0,0.00048921,14]
[343278395,1732537879198,-200.0,0.00048923,14]
[343278396,1732537879211,-506.15478439,0.00048923,14]
[343278397,1732537879221,-2464.21491062,0.00048924,14]
[343278398,1732537879233,-16609.56760085,0.00048925,14]
[343278399,1732537879244,-859.64612158,0.00048937,14]
[343278400,1732537879256,-16609.56760085,0.00048938,14]
[343278401,1732537879267,-738.13604751,0.00048939,14]
[343278402,1732537879279,-2464.21491062,0.00048945,14]
[343278403,1732537879290,-859.64612158,0.00048951,14]
[343278404,1732537879301,-506.15478439,0.00048953,14]
[343278405,1732537879312,-859.64612158,0.00048958,14]
[343278406,1732537879323,-506.15478439,0.00048958,14]
[343278407,1732537879333,-2464.21491062,0.00048958,14]
[343278408,1732537879342,-506.15478439,0.00048967,14]
[343278409,1732537879352,-11626.4739084,0.00048968,14]
[343278410,1732537879365,-4206.05986168,0.00048968,14]
[343278411,1732537879379,-777.03383077,0.00048968,14]
[343278412,1732537879390,-757.68812923,0.00048971,14]
[343278413,1732537879410,-500.0,0.00039767,21]
[343278414,1732537879426,-373.36825001,0.00048971,14]
[343278419,1732537983139,800.0,0.00026986,120]
[343278503,1732538105297,800.0,0.00026986,120]
[343278578,1732538279494,193.69,0.00016803,2]
[343278593,1732538309566,2511.636127,0.0003,60]
[343278620,1732538421349,44401.0,0.0003,2]
[343278750,1732539032252,-163.63,0.00030153,2]
[343278751,1732539032262,-152.62,0.00030685,2]
[343278752,1732539032271,-157.68,0.00030685,2]
[343278753,1732539032280,-150.0,0.00034548,10]
[343278754,1732539032289,-300.0,0.00035,20]
[343278755,1732539032298,-613.01,0.00035664,2]
[343278756,1732539032308,-150.0,0.0003615,2]
[343278757,1732539032317,-4785.6084524,0.00037,2]
[343278758,1732539032326,-1000.0,0.00037095,2]
[343278759,1732539032335,-477.66,0.0003711,120]
[343278760,1732539032344,-12541.94887606,0.0003713,2]
[343278761,1732539032361,-11358.05112394,0.0003713,2]
[343278762,1732539032370,-291.0,0.00037146,2]
[343278763,1732539032379,-226.49,0.00037211,2]
[343278764,1732539032388,-174.22,0.00037343,2]
[343278765,1732539032397,-250.0,0.00037407,120]
[343278766,1732539032406,-152.29,0.00037464,120]
[343278767,1732539032416,-150.0,0.00037562,2]
[343278768,1732539032425,-182.55,0.00037583,120]
[343278769,1732539032434,-500.0,0.00037619,2]
[343278770,1732539032443,-250.0,0.00037649,2]
[343278771,1732539032452,-500.0,0.00037699,2]
[343278772,1732539032461,-152.62,0.00037772,2]
[343278773,1732539032470,-1012.25,0.00037897,2]
[343278774,1732539032479,-613.01,0.00037928,2]
[343278775,1732539032487,-284.2467,0.00038256,30]
[343278776,1732539032497,-992.0,0.00038356,4]
[343278777,1732539032506,-3567.0,0.00038356,5]
[343278778,1732539032515,-2251.0,0.00038356,7]
[343278779,1732539032525,-500.0,0.00038397,21]
[343278780,1732539032534,-500.0,0.00038397,21]
[343278781,1732539032543,-430.58870862,0.00038397,21]
[343278782,1732539032552,-500.0,0.00038397,21]
[343278783,1732539032562,-524.66974391,0.00038397,15]
[343278784,1732539032571,-504.58454692,0.00038397,21]
[343278785,1732539032579,-500.0,0.00038397,21]
[343278786,1732539032588,-500.0,0.00038397,21]
[343278787,1732539032598,-500.0,0.00038397,21]
[343278788,1732539032609,-500.0,0.00038397,21]
[343278789,1732539032618,-500.0,0.00038397,21]
[343278790,1732539032627,-500.0,0.00038397,21]
[343278791,1732539032637,-500.0,0.00038397,21]
[343278792,1732539032646,-500.0,0.00038397,7]
[343278793,1732539032655,-500.0,0.00038397,21]
[343278794,1732539032664,-500.0,0.00038397,21]
[343278795,1732539032673,-500.0,0.00038397,21]
[343278796,1732539032682,-500.0,0.00038397,21]
[343278797,1732539032692,-500.0,0.00038397,21]
[343278798,1732539032701,-500.0,0.00038397,21]
[343278799,1732539032710,-333.39631147,0.00038397,21]
[343278801,1732539032719,-500.0,0.00038397,21]
[343278802,1732539032729,-504.16342792,0.00038397,21]
[343278804,1732539032742,-500.0,0.00038397,21]
[343278806,1732539032751,-502.74263733,0.00038397,21]
[343278808,1732539032760,-283.78746754,0.00038397,21]
[343278809,1732539032771,-509.73822345,0.00038397,21]
[343278810,1732539032780,-500.0,0.00038397,21]
[343278811,1732539032789,-197.54389863,0.00038397,21]
[343278812,1732539032799,-504.97082934,0.00038397,21]
[343278813,1732539032809,-500.0,0.00038397,21]
[343278814,1732539032818,-532.10069324,0.00038397,21]
[343278815,1732539032827,-500.0,0.00038397,21]
[343278816,1732539032836,-500.0,0.00038397,21]
[343278817,1732539032846,-427.37935443,0.00038397,21]
[343278818,1732539032856,-500.0,0.00038397,21]
[343278819,1732539032866,-500.0,0.00038397,21]
[343278820,1732539032875,-176.18,0.00038529,91]
[343278821,1732539032884,-648.13874492,0.00038569,2]
[343278822,1732539032894,-9833.51624381,0.0003857,2]
[343278823,1732539032904,-157.4247771,0.0003857,2]
[343278824,1732539032914,-310.6271,0.0003857,2]
[343278825,1732539032923,-784.15,0.00038659,10]
[343278826,1732539032933,-500.0,0.00038668,21]
[343278827,1732539032942,-500.0,0.00038668,21]
[343278828,1732539032951,-152.41864434,0.00038669,21]
[343278829,1732539032960,-500.0,0.00038669,21]
[343278830,1732539032970,-511.46,0.00038669,21]
[343278831,1732539032980,-500.0,0.00038669,21]
[343278832,1732539032990,-500.0,0.00038669,21]
[343278833,1732539032999,-500.0,0.00038669,21]
[343278834,1732539033009,-500.0,0.00038669,21]
[343278835,1732539033019,-500.0,0.00038669,21]
[343278836,1732539033028,-500.0,0.00038669,21]
[343278837,1732539033038,-500.0,0.00038669,21]
[343278838,1732539033047,-500.0,0.00038669,21]
[343278839,1732539033056,-500.0,0.00038669,21]
[343278840,1732539033066,-500.0,0.00038669,21]
[343278841,1732539033075,-500.0,0.00038669,21]
[343278842,1732539033084,-500.0,0.00038669,21]
[343278843,1732539033093,-581.66776536,0.00038669,21]
[343278844,1732539033102,-562.56,0.00038669,21]
[343278845,1732539033112,-500.0,0.00038669,21]
[343278846,1732539033122,-500.0,0.00038669,21]
[343278847,1732539033131,-500.0,0.00038669,21]
[343278848,1732539033141,-500.0,0.00038669,21]
[343278849,1732539033151,-500.0,0.00038669,21]
[343278850,1732539033160,-500.0,0.00038669,21]
[343278851,1732539033169,-500.0,0.00038669,21]
[343278852,1732539033179,-500.0,0.00038669,21]
[343278853,1732539033188,-500.0,0.00038669,21]
[343278854,1732539033197,-500.0,0.00038669,21]
[343278855,1732539033207,-500.0,0.00038669,21]
[343278856,1732539033216,-500.0,0.00038669,21]
[343278857,1732539033225,-500.0,0.00038669,21]
[343278858,1732539033235,-500.0,0.00038669,21]
[343278859,1732539033244,-500.0,0.00038669,21]
[343278860,1732539033253,-500.0,0.00038669,21]
[343278861,1732539033262,-500.0,0.00038669,21]
[343278862,1732539033271,-500.0,0.00038669,21]
[343278863,1732539033280,-500.0,0.00038669,21]
[343278864,1732539033290,-500.0,0.00038669,21]
[343278865,1732539033299,-500.0,0.00038669,21]
[343278866,1732539033308,-500.0,0.00038669,21]
[343278867,1732539033317,-500.0,0.00038669,21]
[343278868,1732539033327,-500.0,0.00038669,21]
[343278869,1732539033336,-500.0,0.00038669,21]
[343278870,1732539033346,-500.0,0.00038669,21]
[343278871,1732539033358,-500.0,0.00038669,21]
[343278872,1732539033368,-500.0,0.00038669,21]
[343278873,1732539033378,-500.0,0.00038669,21]
[343278874,1732539033388,-500.0,0.00038669,21]
[343278875,1732539033397,-500.0,0.00038669,21]
[343278876,1732539033406,-500.0,0.00038669,21]
[343278877,1732539033416,-500.0,0.00038669,21]
[343278878,1732539033425,-500.0,0.00038669,21]
[343278879,1732539033435,-500.0,0.00038669,21]
[343278880,1732539033444,-500.0,0.00038669,21]
[343278881,1732539033454,-500.0,0.00038669,21]
[343278882,1732539033463,-500.0,0.00038669,21]
[343278883,1732539033472,-500.0,0.00038669,21]
[343278884,1732539033481,-500.0,0.00038669,21]
[343278885,1732539033490,-500.0,0.00038669,21]
[343278886,1732539033500,-500.0,0.00038669,21]
[343278887,1732539033509,-500.0,0.00038669,21]
[343278888,1732539033518,-500.0,0.00038669,21]
[343278889,1732539033527,-500.0,0.00038669,21]
[343278890,1732539033538,-500.0,0.00038669,21]
[343278891,1732539033548,-995.33,0.00038669,21]
[343278892,1732539033558,-505.48109124,0.00038669,21]
[343278893,1732539033567,-658.75,0.00038669,21]
[343278894,1732539033577,-508.2712415,0.00038669,21]
[343278895,1732539033587,-500.0,0.00038669,21]
[343278896,1732539033597,-500.0,0.00038669,21]
[343278897,1732539033610,-500.0,0.00038669,21]
[343278898,1732539033620,-500.0,0.00038669,21]
[343278899,1732539033630,-500.0,0.00038669,21]
[343278900,1732539033639,-500.0,0.00038669,21]
[343278901,1732539033650,-500.0,0.00038669,21]
[343278902,1732539033660,-500.0,0.00038669,21]
[343278903,1732539033669,-500.0,0.00038669,21]
[343278904,1732539033679,-500.0,0.00038669,21]
[343278905,1732539033689,-500.0,0.00038669,21]
[343278906,1732539033704,-515.67125413,0.00038669,21]
[343278907,1732539033713,-500.0,0.00038669,21]
[343278908,1732539033723,-500.0,0.00038669,21]
[343278909,1732539033736,-500.0,0.00038669,21]
[343278910,1732539033745,-500.0,0.00038669,21]
[343278911,1732539033755,-500.0,0.00038669,21]
[343278912,1732539033764,-500.0,0.00038669,21]
[343278913,1732539033775,-508.56,0.00038669,21]
[343278914,1732539033785,-500.0,0.00038669,21]
[343278915,1732539033795,-500.0,0.00038669,21]
[343278916,1732539033804,-500.0,0.00038669,21]
[343278917,1732539033815,-500.0,0.00038669,21]
[343278918,1732539033826,-500.0,0.00038669,21]
[343278919,1732539033836,-500.0,0.00038669,21]
[343278920,1732539033846,-500.0,0.00038669,21]
[343278921,1732539033857,-500.0,0.00038669,21]
[343278922,1732539033867,-500.0,0.00038669,21]
[343278923,1732539033876,-500.0,0.00038669,21]
[343278924,1732539033886,-500.0,0.00038669,21]
[343278925,1732539033896,-500.0,0.00038669,21]
[343278926,1732539033907,-500.0,0.00038669,21]
[343278927,1732539033918,-500.0,0.00038669,21]
[343278928,1732539033927,-500.0,0.00038669,21]
[343278929,1732539033937,-500.0,0.00038669,21]
[343278931,1732539033947,-329.87064703,0.00038669,21]
[343278932,1732539033957,-500.0,0.00038669,21]
[343278933,1732539033966,-500.0,0.00038669,21]
[343278934,1732539033976,-500.0,0.00038669,21]
[343278935,1732539033986,-500.0,0.00038669,21]
[343278936,1732539033995,-500.0,0.00038669,21]
[343278937,1732539034005,-500.0,0.00038669,21]
[343278938,1732539034014,-500.0,0.00038669,21]
[343278939,1732539034024,-500.0,0.00038669,21]
[343278940,1732539034034,-500.0,0.00038669,21]
[343278941,1732539034043,-500.0,0.00038669,21]
[343278942,1732539034054,-500.0,0.00038669,21]
[343278943,1732539034064,-500.0,0.00038669,21]
[343278944,1732539034074,-500.0,0.00038669,21]
[343278945,1732539034084,-500.0,0.00038669,21]
[343278946,1732539034093,-500.0,0.00038669,21]
[343278947,1732539034103,-500.0,0.00038669,21]
[343278948,1732539034114,-500.0,0.00038669,21]
[343278949,1732539034123,-583.46658701,0.00038669,21]
[343278950,1732539034133,-500.0,0.00038669,21]
[343278951,1732539034143,-500.0,0.00038669,21]
[343278952,1732539034152,-500.0,0.00038669,21]
[343278953,1732539034161,-500.0,0.00038669,21]
[343278954,1732539034171,-500.0,0.00038669,21]
[343278955,1732539034180,-500.0,0.00038669,21]
[343278956,1732539034189,-500.0,0.00038669,2]
[343278957,1732539034199,-500.0,0.00038669,21]
[343278958,1732539034208,-500.0,0.00038669,21]
[343278959,1732539034218,-500.0,0.00038669,21]
[343278960,1732539034228,-623.3,0.00038669,21]
[343278961,1732539034238,-500.0,0.00038669,21]
[343278962,1732539034248,-500.0,0.00038669,21]
[343278963,1732539034258,-1812.87,0.00038669,21]
[343278964,1732539034267,-640.55415664,0.00038669,21]
[343278965,1732539034277,-500.0,0.00038669,21]
[343278966,1732539034286,-500.0,0.00038669,21]
[343278967,1732539034295,-500.0,0.00038669,21]
[343278968,1732539034305,-500.0,0.00038669,21]
[343278969,1732539034314,-533.23,0.00038669,21]
[343278970,1732539034324,-500.0,0.00038669,21]
[343278971,1732539034333,-500.0,0.00038669,21]
[343278972,1732539034343,-500.0,0.00038669,21]
[343278973,1732539034352,-500.0,0.00038669,21]
[343278974,1732539034363,-500.0,0.00038669,21]
[343278975,1732539034372,-500.0,0.00038669,21]
[343278976,1732539034382,-974.9,0.00038669,21]
[343278977,1732539034391,-500.0,0.00038669,21]
[343278978,1732539034400,-500.0,0.00038669,21]
[343278979,1732539034410,-500.0,0.00038669,21]
[343278980,1732539034420,-500.0,0.00038669,21]
[343278981,1732539034430,-500.0,0.00038669,21]
[343278982,1732539034439,-500.0,0.00038669,21]
[343278983,1732539034448,-592.78,0.00038669,21]
[343278984,1732539034458,-500.0,0.00038669,21]
[343278985,1732539034467,-500.0,0.00038669,21]
[343278986,1732539034477,-500.0,0.00038669,21]
[343278987,1732539034487,-500.0,0.00038669,21]
[343278988,1732539034497,-618.90924775,0.00038669,21]
[343278989,1732539034506,-500.0,0.00038669,21]
[343278990,1732539034517,-500.0,0.00038669,21]
[343278991,1732539034527,-500.0,0.00038669,21]
[343278992,1732539034536,-500.0,0.00038669,21]
[343278993,1732539034546,-360.9694871,0.00038669,21]
[343278994,1732539034556,-500.0,0.00038669,21]
[343278995,1732539034565,-1920.35,0.00038669,21]
[343278996,1732539034575,-500.0,0.00038669,21]
[343278997,1732539034584,-500.0,0.00038669,21]
[343278998,1732539034594,-500.0,0.00038669,21]
[343278999,1732539034604,-500.0,0.00038669,21]
[343279000,1732539034616,-500.0,0.00038669,21]
[343279001,1732539034630,-500.0,0.00038669,21]
[343279002,1732539034640,-500.0,0.00038669,21]
[343279003,1732539034650,-500.0,0.00038669,21]
[343279004,1732539034660,-125.01749604,0.00038669,21]
[343279005,1732539034679,-374.98250396,0.00038669,21]
[343279006,1732539034688,-500.0,0.00038669,21]
[343279007,1732539034698,-943.33,0.00038669,21]
[343279008,1732539034708,-500.0,0.00038669,21]
[343279009,1732539034718,-500.0,0.00038669,21]
[343279010,1732539034728,-500.0,0.00038669,21]
[343279011,1732539034741,-500.0,0.00038669,21]
[343279012,1732539034750,-500.0,0.00038669,21]
[343279013,1732539034760,-500.0,0.00038669,21]
[343279014,1732539034769,-500.0,0.00038669,21]
[343279015,1732539034779,-500.0,0.00038669,21]
[343279016,1732539034789,-500.0,0.00038669,21]
[343279017,1732539034801,-1280.56,0.00038669,21]
[343279018,1732539034812,-500.0,0.00038669,21]
[343279019,1732539034822,-2669.56,0.00038669,21]
[343279020,1732539034832,-500.0,0.00038669,21]
[343279021,1732539034842,-500.0,0.00038669,21]
[343279022,1732539034851,-500.0,0.00038669,21]
[343279023,1732539034864,-500.0,0.00038669,21]
[343279024,1732539034874,-500.0,0.00038669,21]
[343279025,1732539034887,-500.0,0.00038669,21]
[343279026,1732539034896,-500.0,0.00038669,21]
[343279027,1732539034906,-500.0,0.00038669,21]
[343279028,1732539034915,-1041.36,0.00038669,21]
[343279029,1732539034924,-500.0,0.00038669,21]
[343279030,1732539034934,-500.0,0.00038669,21]
[343279031,1732539034943,-187.54,0.00038669,21]
[343279032,1732539034952,-500.0,0.00038669,21]
[343279033,1732539034962,-500.0,0.00038669,21]
[343279034,1732539034971,-500.0,0.00038669,21]
[343279035,1732539034979,-500.0,0.00038669,21]
[343279036,1732539034990,-500.0,0.00038669,21]
[343279037,1732539034999,-1000.0,0.00038669,21]
[343279038,1732539035009,-416.80350741,0.00038669,21]
[343279039,1732539035018,-500.0,0.00038669,21]
[343279040,1732539035028,-500.0,0.00038669,21]
[343279041,1732539035038,-500.0,0.00038669,21]
[343279042,1732539035048,-500.0,0.00038669,21]
[343279043,1732539035058,-500.0,0.00038669,21]
[343279044,1732539035068,-500.0,0.00038669,21]
[343279045,1732539035078,-540.87291381,0.00038669,21]
[343279046,1732539035088,-500.0,0.00038669,21]
[343279047,1732539035098,-500.0,0.00038669,21]
[343279048,1732539035108,-500.0,0.00038669,21]
[343279049,1732539035118,-500.0,0.00038669,21]
[343279050,1732539035127,-1355.89,0.00038669,21]
[343279051,1732539035137,-500.0,0.00038669,7]
[343279052,1732539035147,-200.0,0.00038669,7]